[Event "Berliner IM-Turnier 2025"]
[Site "Berlin"]
[Date "2025.02.25"]
[Round "3.8"]
[White "Ahmadinia, Ebrahim"]
[Black "Poltorak, Sebastian"]
[Result "1/2-1/2"]
[Annotator "TA"]
[ECO "B11"]
[WhiteElo "2404"]
[BlackElo "2407"]
[PlyCount "152"]
[EventDate "2025.02.23"]
[EventType "tourn"]
[EventCountry "GER"]
[SourceTitle "playchess.com"]
[Source "ChessBase"]
[SourceQuality "1"]
[TimeControl "40/5400+30:1800+30"]

{[%evp 9,152,43,44,48,48,41,50,30,29,29,30,25,36,26,30,31,44,39,56,54,56,56,41,28,31,19,37,44,39,43,42,44,55,35,45,-20,-20,-19,-25,-16,-26,-18,-31,-25,-16,-45,-16,-19,0,0,0,0,8,11,8,10,13,12,67,12,12,14,20,10,23,21,19,8,0,0,41,38,24,31,69,77,87,54,56,25,31,54,83,8,7,8,22,0,0,0,0,0,0,0,1,0,0,0,0,0,0,-8,-8,-8,-8,-8,-8,-8,-8,-8,-8,-8,-8,-8,0,0,0,-8,-8,-8,-8,-8,-8,-8,-8,-8,-8,-8,-8,-8,0,0,0,0,0,0,0,0,0,0,0,0,0,0,0]} 1. e4 {[%emt 0:04:38]} c6 {[%emt 0:00:08]} 2. Nf3 {[%emt 0:05:00]} d5 {[%emt 0:00:14]} 3. Nc3 {[%emt 0:00:06]} dxe4 {[%emt 0:00:48]} 4. Nxe4 {[%emt 0:00:13]} Nf6 {[%emt 0:00:05]} 5. Qe2 {[%emt 0:06:02]} Bf5 {[%emt 0:00:06]} 6. Nxf6+ {[%emt 0:00:50] B11: Caro-Kann: Two Knights Variation.} gxf6 {[%emt 0:00:05]} 7. d4 {[%emt 0:07:31]} Qd5 {[%emt 0:04:45]} 8. c4 {[%emt 0:12:45] White is slightly better.} Qe4 {[%emt 0:00:08]} 9. Qxe4 {[%emt 0:03:09]} Bxe4 {[%emt 0:00:15]} 10. Be2 {[%emt 0:01:21]} Na6 {[%emt 0:01:37]} 11. a3 {[%emt 0:01:24] Prevents Nb4.} O-O-O $146 {[%emt 0:14:42]} ({Predecessor:} 11... h5 12. O-O Nc7 13. Be3 Bh6 14. Rfd1 O-O-O 15. Rac1 Kb8 16. Rc3 Ne6 17. Ne1 Bg6 {½-½ Young,A (2092)-Brown,T (2116) WLS-chT Wales 2023 (2.3)}) 12. Be3 {[%emt 0:00:39]} Rg8 {[%emt 0:01:06]} 13. O-O {[%emt 0:00:51]} Kb8 {[%emt 0:01:16]} 14. Rfd1 {[%emt 0:07:35]} e6 {[%emt 0:02:49]} 15. Ne1 {[%emt 0:09:09]} Nc7 {[%emt 0:03:23]} 16. f3 {[%emt 0:02:19]} Bf5 {[%emt 0:00:58]} 17. Kf2 {[%emt 0:02:33]} Bd6 {[%emt 0:02:26]} 18. g3 {[%emt 0:00:18]} e5 {[%emt 0:05:32]} 19. Ng2 {[%emt 0:02:10]} Ne6 {[%emt 0:02:39] [#]} 20. d5 {[%emt 0:08:35]} Nd4 {[%emt 0:01:03]} 21. Bxd4 {[%emt 0:01:00]} exd4 {[%emt 0:00:07]} 22. Bd3 {[%emt 0:01:33]} (22. Rxd4 Bc5 23. Rad1 Bc2 $17) (22. Nh4 $14 Bc2 23. Rd2 (23. Rxd4 $2 Bc5 $19)) 22... Bxd3 $11 {[%emt 0:02:08]} 23. Rxd3 {[%emt 0:00:02]} cxd5 {[%emt 0:00:09]} 24. cxd5 {[%emt 0:00:35][%cal Oa1d1]} Bc7 {[%emt 0:01:53]} 25. Re1 {[%emt 0:03:43]} (25. Rxd4 $2 Bb6 26. Kf1 Bxd4 $19) 25... Rxd5 {[%emt 0:00:12]} 26. Re7 {[%emt 0:00:15]} Rf8 {[%emt 0:00:32]} 27. Re2 {[%emt 0:03:40]} Re5 {[%emt 0:02:59]} 28. f4 {[%emt 0:03:07]} (28. Rxd4 $2 Bb6 29. Rc2 Bxd4+ $19) 28... Re6 {[%emt 0:00:45]} 29. Nh4 {[%emt 0:05:08]} (29. Rxd4 $2 Bb6 30. Red2 Rd8 $19 (30... Bxd4+ $2 31. Rxd4 Kc7 32. Rd5 $19)) 29... Rfe8 {[%emt 0:01:41]} 30. Red2 {[%emt 0:00:28][%cal Oh4f5]} (30. Rxe6 fxe6 31. Nf3 (31. Rxd4 $2 {too greedy.} Bb6 $19) 31... e5 32. fxe5 fxe5 $19) 30... Ba5 {[%emt 0:02:28]} 31. b4 {[%emt 0:00:42]} Bb6 {[%emt 0:00:03]} 32. Nf5 {[%emt 0:00:47]} Rd8 {[%emt 0:02:20]} 33. Kf3 {[%emt 0:02:19][%cal Rf5d4]} Rd5 {[%emt 0:00:08]} (33... Ka8 $11) 34. g4 {[%emt 0:00:58]} ({Better is} 34. Nxd4 $14 Red6 35. Ke4) 34... h5 {[%emt 0:11:25]} 35. h3 {[%emt 0:00:08]} hxg4+ {[%emt 0:02:22]} 36. hxg4 {[%emt 0:00:22][%cal Oa3a4]} Re1 {[%emt 0:01:46]} 37. Nxd4 {[%emt 0:00:41]} a5 {[%emt 0:01:03]} 38. Nc2 {[%emt 0:03:35][%csl LRd5,LRe1]} Rxd3+ {[%emt 0:02:40]} 39. Rxd3 {[%emt 0:00:01][%mdl 4096] Endgame KRB-KRN} Rc1 {[%emt 0:07:11]} 40. bxa5 {[%emt 0:00:34]} Bxa5 {[%emt 0:00:05]} 41. Ne3 {[%emt 0:30:28]} Bc7 {[%emt 0:38:57] Prevents Rd6} 42. Ke4 {[%emt 0:00:00]} Bb6 {[%emt 0:00:00]} 43. Kf5 {[%emt 0:00:00]} Rc6 {[%emt 0:00:00]} 44. Nd1 {[%emt 0:00:00]} Rc4 {[%emt 0:00:00]} 45. Nc3 {[%emt 0:00:00]} (45. Kxf6 Rxf4+ 46. Kg5 Rc4 $15) 45... Bd4 {[%emt 0:00:00]} 46. Ne2 {[%emt 0:00:00]} (46. Nd5 $16) 46... Ba1 {[%emt 0:00:00] The position is equal.} 47. Rd8+ {[%emt 0:00:00]} Ka7 {[%emt 0:00:00]} 48. Rd2 {[%emt 0:02:26]} Rc5+ {[%emt 0:00:00]} 49. Ke4 {[%emt 0:00:02]} Ra5 {[%emt 0:00:00]} 50. Ra2 {[%emt 0:02:34]} f5+ $1 {[%emt 0:00:00]} 51. gxf5 {[%emt 0:00:58]} Bf6 {[%emt 0:00:00]} 52. Nc1 {[%emt 0:02:19]} Ra4+ {[%emt 0:00:00]} 53. Ke3 {[%emt 0:00:38]} Be7 {[%emt 0:00:00]} 54. Nd3 {[%emt 0:00:02]} f6 {[%emt 0:00:00]} 55. Kd2 {[%emt 0:01:08]} Rxa3 {[%emt 0:03:52]} 56. Rxa3+ {[%emt 0:00:02]} Bxa3 {[%emt 0:00:06] KB-KN} 57. Kc3 {[%emt 0:00:06]} Kb6 {[%emt 0:00:12]} 58. Kc4 {[%emt 0:01:14]} Kc6 {[%emt 0:00:04]} 59. Nf2 $1 {[%emt 0:00:23]} Be7 {[%emt 0:07:41]} 60. Ng4 {[%emt 0:00:09]} Bd8 {[%emt 0:01:30]} 61. Ne3 {[%emt 0:00:53]} Kb6 {[%emt 0:00:46]} 62. Nd5+ {[%emt 0:00:28]} Ka5 {[%emt 0:00:16]} 63. Kc5 {[%emt 0:00:47]} b5 {[%emt 0:00:36][%cal Bb7b5,Bb5b4,Bb4b3,Bb3b2][%mdl 32]} 64. Kd6 {[%emt 0:00:17]} b4 {[%emt 0:07:53] [#]} 65. Kd7 {[%emt 0:00:20][%cal Od5b4] and Nxb4! should not be overlooked} Bb6 {[%emt 0:00:17]} 66. Nxf6 {[%emt 0:00:28]} b3 {[%emt 0:01:52] ( -> ...b2)} (66... Bd4 $5 67. Ne4 $8 b3 $11) 67. Ne4 $1 {[%emt 0:00:04]} b2 {[%emt 0:01:44]} 68. Nd2 $1 {[%emt 0:00:10]} Kb4 {[%emt 0:00:01] Prevents Nc4} (68... Kb5 $5 69. f6 $8 Bc5 $11) 69. f6 {[%emt 0:01:14]} Bc5 {[%emt 0:00:22]} 70. f7 {[%emt 0:00:30]} Bf8 {[%emt 0:01:14] and ...Kc3 should not be overlooked} 71. Ke8 {[%emt 0:00:09]} Bh6 {[%emt 0:00:02]} 72. f8=Q+ {[%emt 0:01:04]} Bxf8 {[%emt 0:00:03]} 73. Kxf8 {[%emt 0:00:06]} Kc3 {[%emt 0:00:03]} 74. Nb1+ {[%emt 0:00:15]} Kc2 {[%emt 0:00:02]} 75. Na3+ {[%emt 0:01:03]} Kb3 {[%emt 0:00:04]} 76. Nb1 {[%emt 0:00:34]} Kc2 {[%emt 0:00:03] Weighted Error Value: White=0.10 (very precise) /Black=0.07 (flawless)   Mistake:       	White=3     	Black=1      Inaccurate:     	White=3     	Black=3      OK:         	White=30    	Black=32     Best:        	White=9     	Black=4      Strong:       	White=3     	Black=1} 1/2-1/2

[Event "Berliner IM-Turnier 2025"]
[Site "Berlin"]
[Date "2025.02.25"]
[Round "3.9"]
[White "Yatskar, Martin"]
[Black "Jakubowski, Krzysztof"]
[Result "0-1"]
[Annotator "ChessBase"]
[ECO "E32"]
[WhiteElo "2157"]
[BlackElo "2449"]
[PlyCount "96"]
[EventDate "2025.02.23"]
[EventType "tourn"]
[EventCountry "GER"]
[SourceTitle "playchess.com"]
[Source "ChessBase"]
[SourceQuality "1"]
[TimeControl "40/5400+30:1800+30"]

1. d4 {[%emt 0:00:05]} Nf6 {[%emt 0:00:11]} 2. c4 {[%emt 0:00:07]} e6 {[%emt 0:00:16]} 3. Nc3 {[%emt 0:00:06]} Bb4 {[%emt 0:00:25]} 4. Qc2 {[%emt 0:00:09]} b6 {[%emt 0:04:53]} 5. e4 {[%emt 0:00:09]} c5 {[%emt 0:00:05]} 6. d5 {[%emt 0:00:06]} Qe7 {[%emt 0:00:11]} 7. Nge2 {[%emt 0:00:12]} exd5 {[%emt 0:04:50]} 8. exd5 {[%emt 0:00:06]} Qe4 {[%emt 0:09:49]} 9. Qxe4+ {[%emt 0:00:16]} Nxe4 {[%emt 0:00:06]} 10. Bd2 {[%emt 0:00:48]} Nxd2 {[%emt 0:03:51]} 11. Kxd2 {[%emt 0:00:07]} d6 {[%emt 0:00:25]} 12. a3 {[%emt 0:00:18]} Ba5 {[%emt 0:00:07]} 13. Ng3 {[%emt 0:02:51]} f5 {[%emt 0:05:54]} 14. Bd3 {[%emt 0:04:56]} g6 {[%emt 0:00:19]} 15. Kc2 {[%emt 0:03:48]} Bxc3 {[%emt 0:05:44]} 16. Kxc3 {[%emt 0:00:07]} Kf7 {[%emt 0:00:09]} 17. Rae1 {[%emt 0:10:49]} Na6 {[%emt 0:16:25]} 18. h4 {[%emt 0:04:13]} Nc7 {[%emt 0:09:11]} 19. h5 {[%emt 0:01:15]} Bd7 {[%emt 0:00:06]} 20. b4 {[%emt 0:10:00]} Kf6 {[%emt 0:07:19]} 21. bxc5 {[%emt 0:00:53]} dxc5 {[%emt 0:00:25]} 22. Re3 {[%emt 0:07:43]} Rab8 {[%emt 0:07:45]} 23. Ne2 {[%emt 0:04:23]} a6 {[%emt 0:10:29]} 24. f4 {[%emt 0:23:24]} b5 {[%emt 0:02:07]} 25. Ng1 {[%emt 0:02:37]} b4+ {[%emt 0:08:43]} 26. axb4 {[%emt 0:04:27]} cxb4+ {[%emt 0:00:08]} 27. Kd4 {[%emt 0:01:13]} Rhd8 {[%emt 0:01:58]} 28. Re5 {[%emt 0:00:30]} b3 {[%emt 0:00:46]} 29. Nf3 {[%emt 0:00:11]} b2 {[%emt 0:00:07]} 30. hxg6 {[%emt 0:01:17]} hxg6 {[%emt 0:00:22]} 31. Bc2 {[%emt 0:03:04]} Rb4 {[%emt 0:01:19]} 32. Kc3 {[%emt 0:00:23]} Rdb8 {[%emt 0:00:23]} 33. Ree1 {[%emt 0:02:01]} a5 {[%emt 0:01:16]} 34. Ne5 {[%emt 0:00:21]} Ba4 {[%emt 0:00:46]} 35. Bxa4 {[%emt 0:00:19]} b1=Q {[%emt 0:00:34]} 36. Nd7+ {[%emt 0:00:32]} Kg7 {[%emt 0:00:16]} 37. Rxb1 {[%emt 0:00:14]} Rxb1 {[%emt 0:00:03]} 38. Nxb8 {[%emt 0:00:13]} Rxh1 {[%emt 0:00:11]} 39. d6 {[%emt 0:00:12]} Ne6 {[%emt 0:00:11]} 40. Nc6 {[%emt 0:00:58]} Ra1 {[%emt 0:01:27]} 41. Bc2 {[%emt 0:32:41]} Ra3+ {[%emt 0:05:22]} 42. Kb2 {[%emt 0:00:00]} Rg3 {[%emt 0:00:05]} 43. d7 {[%emt 0:00:00]} Rxg2 {[%emt 0:02:28]} 44. d8=Q {[%emt 0:00:00]} Nxd8 {[%emt 0:00:09]} 45. Nxd8 {[%emt 0:00:00]} a4 {[%emt 0:01:29]} 46. Ne6+ {[%emt 0:00:00]} Kf6 {[%emt 0:01:09]} 47. Nd4 {[%emt 0:00:00]} a3+ {[%emt 0:01:47]} 48. Kc3 {[%emt 0:00:00]} Rf2 {[%emt 0:03:35]} 0-1

[Event "Berliner IM-Turnier 2025"]
[Site "Berlin"]
[Date "2025.02.25"]
[Round "3.10"]
[White "Noeldner, Julian"]
[Black "Schulze, Lara"]
[Result "1/2-1/2"]
[Annotator "ChessBase"]
[ECO "C84"]
[WhiteElo "2233"]
[BlackElo "2266"]
[PlyCount "83"]
[EventDate "2025.02.23"]
[EventType "tourn"]
[EventCountry "GER"]
[SourceTitle "playchess.com"]
[Source "ChessBase"]
[SourceQuality "1"]
[TimeControl "40/5400+30:1800+30"]

1. e4 {[%emt 0:00:04]} e5 {[%emt 0:00:06]} 2. Nf3 {[%emt 0:00:06]} Nc6 {[%emt 0:00:04]} 3. Bb5 {[%emt 0:00:06]} a6 {[%emt 0:00:52]} 4. Ba4 {[%emt 0:00:06]} Nf6 {[%emt 0:00:33]} 5. O-O {[%emt 0:00:09]} Nxe4 {[%emt 0:01:17]} 6. d4 {[%emt 0:00:07]} Be7 {[%emt 0:00:04]} 7. Re1 {[%emt 0:00:05]} b5 {[%emt 0:00:06]} 8. Rxe4 {[%emt 0:00:06]} d5 {[%emt 0:00:06]} 9. Nxe5 {[%emt 0:00:05]} Nxe5 {[%emt 0:00:05]} 10. Rxe5 {[%emt 0:00:06]} bxa4 {[%emt 0:00:04]} 11. Qe2 {[%emt 0:00:06]} Be6 {[%emt 0:01:47]} 12. f4 {[%emt 0:00:07]} Kf8 {[%emt 0:02:00]} 13. Nc3 {[%emt 0:00:08]} Bf6 {[%emt 0:18:56]} 14. Nxa4 {[%emt 0:00:53]} Bxe5 {[%emt 0:01:59]} 15. fxe5 {[%emt 0:00:05]} Qh4 {[%emt 0:01:12]} 16. Be3 {[%emt 0:00:07]} h5 {[%emt 0:08:37]} 17. Qd3 {[%emt 0:00:17]} Qg4 {[%emt 0:11:43]} 18. Rf1 {[%emt 0:08:44]} h4 {[%emt 0:04:38]} 19. h3 {[%emt 0:05:34]} Qg3 {[%emt 0:18:49]} 20. Rf3 {[%emt 0:15:21]} Qe1+ {[%emt 0:00:08]} 21. Kh2 {[%emt 0:00:06]} Kg8 {[%emt 0:00:41]} 22. Nc3 {[%emt 0:16:56]} Rh5 {[%emt 0:06:50]} 23. Bd2 {[%emt 0:06:52]} Qa1 {[%emt 0:00:19]} 24. b3 {[%emt 0:01:22]} Qb2 {[%emt 0:03:45]} 25. Na4 {[%emt 0:04:38]} Qa3 {[%emt 0:04:24]} 26. Nc5 {[%emt 0:00:31]} Rxe5 {[%emt 0:03:16]} 27. dxe5 {[%emt 0:16:57]} Qxc5 {[%emt 0:00:04]} 28. Rf4 {[%emt 0:00:08]} Qe7 {[%emt 0:03:16]} 29. Ra4 {[%emt 0:00:29]} c6 {[%emt 0:07:54]} 30. Be1 {[%emt 0:09:54]} Bd7 {[%emt 0:01:21]} 31. Bxh4 {[%emt 0:12:29]} Qxe5+ {[%emt 0:00:06]} 32. Bg3 {[%emt 0:00:08]} Qf5 {[%emt 0:00:28]} 33. Qc3 {[%emt 0:02:54]} Re8 {[%emt 0:00:29]} 34. Rg4 {[%emt 0:00:51]} f6 {[%emt 0:00:14]} 35. Rf4 {[%emt 0:00:24]} Qh5 {[%emt 0:00:58]} 36. Qd3 {[%emt 0:00:46]} Qh7 {[%emt 0:00:35]} 37. Qxa6 {[%emt 0:00:34]} Qxc2 {[%emt 0:00:34]} 38. Rf2 {[%emt 0:00:14]} Qb1 {[%emt 0:00:36]} 39. Rf1 {[%emt 0:00:39]} Qc2 {[%emt 0:00:08]} 40. Rf2 {[%emt 0:00:31]} Qb1 {[%emt 0:00:19]} 41. Rf1 {[%emt 0:09:53]} Qc2 {[%emt 0:03:02]} 42. Rf2 {[%emt 0:00:37]} 1/2-1/2

[Event "Berliner IM-Turnier 2025"]
[Site "Berlin"]
[Date "2025.02.26"]
[Round "4.6"]
[White "Zobel, Christian"]
[Black "Schulze, Lara"]
[Result "0-1"]
[Annotator "ChessBase"]
[ECO "E20"]
[WhiteElo "2188"]
[BlackElo "2266"]
[PlyCount "86"]
[EventDate "2025.02.23"]
[EventType "tourn"]
[EventCountry "GER"]
[SourceTitle "playchess.com"]
[Source "ChessBase"]
[SourceQuality "1"]
[TimeControl "40/5400+30:1800+30"]

1. d4 {[%emt 0:00:05]} Nf6 {[%emt 0:00:02]} 2. c4 {[%emt 0:00:07]} e6 {[%emt 0:00:04]} 3. Nc3 {[%emt 0:00:15]} Bb4 {[%emt 0:00:06]} 4. f3 {[%emt 0:00:16]} c5 {[%emt 0:00:17]} 5. d5 {[%emt 0:00:19]} b5 {[%emt 0:00:34]} 6. e4 {[%emt 0:00:07]} d6 {[%emt 0:00:04]} 7. Bd2 {[%emt 0:00:45]} Bxc3 {[%emt 0:00:30]} 8. Bxc3 {[%emt 0:01:26]} b4 {[%emt 0:00:11]} 9. Bd2 {[%emt 0:06:34]} O-O {[%emt 0:01:02]} 10. Bg5 {[%emt 0:05:03]} h6 {[%emt 0:07:33]} 11. Bh4 {[%emt 0:01:32]} Ba6 {[%emt 0:11:37]} 12. Bd3 {[%emt 0:10:43]} Nbd7 {[%emt 0:05:24]} 13. f4 {[%emt 0:05:37]} exd5 {[%emt 0:07:15]} 14. exd5 {[%emt 0:01:38]} Qe8+ {[%emt 0:07:30]} 15. Ne2 {[%emt 0:02:29]} Ng4 {[%emt 0:02:05]} 16. Bf2 {[%emt 0:03:51]} Ndf6 {[%emt 0:10:21]} 17. O-O {[%emt 0:58:13]} Ne3 {[%emt 0:03:15]} 18. Bxe3 {[%emt 0:00:00]} Qxe3+ {[%emt 0:00:05]} 19. Kh1 {[%emt 0:00:00]} Ng4 {[%emt 0:01:38]} 20. Ng3 {[%emt 0:00:00]} Nf2+ {[%emt 0:03:50]} 21. Rxf2 {[%emt 0:00:00]} Qxf2 {[%emt 0:00:06]} 22. Qg4 {[%emt 0:00:00]} Rae8 {[%emt 0:03:42]} 23. h3 {[%emt 0:00:00]} Bc8 {[%emt 0:06:16]} 24. f5 {[%emt 0:00:00]} Re3 {[%emt 0:04:50]} 25. Nh5 {[%emt 0:00:00]} Qxb2 {[%emt 0:00:17]} 26. Rd1 {[%emt 0:00:00]} Rfe8 {[%emt 0:01:46]} 27. Kh2 {[%emt 0:00:00]} Qe5+ {[%emt 0:01:07]} 28. Ng3 {[%emt 0:00:00]} h5 {[%emt 0:00:45]} 29. Qh4 {[%emt 0:00:00]} a5 {[%emt 0:04:41]} 30. Bc2 {[%emt 0:00:00]} Ba6 {[%emt 0:02:21]} 31. Bb3 {[%emt 0:00:00]} Bc8 {[%emt 0:06:29]} 32. Rf1 {[%emt 0:00:00]} Bd7 {[%emt 0:00:54]} 33. Bd1 {[%emt 0:00:00]} Qxg3+ {[%emt 0:06:00]} 34. Qxg3 {[%emt 0:00:00]} Rxg3 {[%emt 0:00:05]} 35. Kxg3 {[%emt 0:00:00]} h4+ {[%emt 0:00:11]} 36. Kf4 {[%emt 0:00:00]} Re5 {[%emt 0:01:34]} 37. Bg4 {[%emt 0:00:00]} a4 {[%emt 0:00:46]} 38. Rf2 {[%emt 0:00:00]} Re1 {[%emt 0:01:09]} 39. Re2 {[%emt 0:00:00]} Rf1+ {[%emt 0:01:09]} 40. Ke4 {[%emt 0:00:00]} Rc1 {[%emt 0:01:26]} 41. Kd3 {[%emt 0:19:44]} Rc3+ {[%emt 0:30:13]} 42. Kd2 {[%emt 0:00:02]} Kf8 {[%emt 0:00:24]} 43. Re4 {[%emt 0:00:08]} Ra3 {[%emt 0:00:00]} 0-1

[Event "Berliner IM-Turnier 2025"]
[Site "Berlin"]
[Date "2025.02.26"]
[Round "4.7"]
[White "Jakubowski, Krzysztof"]
[Black "Noeldner, Julian"]
[Result "1/2-1/2"]
[Annotator "ChessBase"]
[ECO "A10"]
[WhiteElo "2449"]
[BlackElo "2233"]
[PlyCount "106"]
[EventDate "2025.02.23"]
[EventType "tourn"]
[EventCountry "GER"]
[SourceTitle "playchess.com"]
[Source "ChessBase"]
[SourceQuality "1"]
[TimeControl "40/5400+30:1800+30"]

1. c4 {[%emt 0:00:05]} g6 {[%emt 0:00:43]} 2. e4 {[%emt 0:00:40]} e5 {[%emt 0:01:08]} 3. Nc3 {[%emt 0:02:46]} Bg7 {[%emt 0:02:20]} 4. h4 {[%emt 0:02:32]} h5 {[%emt 0:19:24]} 5. d3 {[%emt 0:02:17]} Ne7 {[%emt 0:00:20]} 6. Bg5 {[%emt 0:01:11]} c6 {[%emt 0:01:29]} 7. Be2 {[%emt 0:15:44]} d6 {[%emt 0:07:49]} 8. Qd2 {[%emt 0:01:57]} a6 {[%emt 0:04:29]} 9. b4 {[%emt 0:12:53]} Be6 {[%emt 0:13:27]} 10. Nf3 {[%emt 0:04:28]} Bg4 {[%emt 0:00:59]} 11. a4 {[%emt 0:04:14]} Nd7 {[%emt 0:08:25]} 12. a5 {[%emt 0:01:33]} Nf8 {[%emt 0:00:37]} 13. Ng1 {[%emt 0:04:41]} Bxe2 {[%emt 0:02:06]} 14. Ngxe2 {[%emt 0:00:24]} Ne6 {[%emt 0:00:06]} 15. Na4 {[%emt 0:00:23]} Qc7 {[%emt 0:05:42]} 16. Rc1 {[%emt 0:05:40]} f6 {[%emt 0:13:59]} 17. Be3 {[%emt 0:00:57]} f5 {[%emt 0:00:06]} 18. Nb6 {[%emt 0:01:00]} Rd8 {[%emt 0:02:11]} 19. Nd5 {[%emt 0:03:37]} Qd7 {[%emt 0:03:51]} 20. Nb6 {[%emt 0:06:12]} Qc7 {[%emt 0:00:05]} 21. f3 {[%emt 0:07:01]} O-O {[%emt 0:01:29]} 22. O-O {[%emt 0:00:07]} Kh7 {[%emt 0:02:47]} 23. d4 {[%emt 0:00:30]} fxe4 {[%emt 0:06:47]} 24. fxe4 {[%emt 0:00:51]} exd4 {[%emt 0:01:28]} 25. Nxd4 {[%emt 0:00:26]} Nxd4 {[%emt 0:00:06]} 26. Bxd4 {[%emt 0:00:05]} Nc8 {[%emt 0:00:45]} 27. Rxf8 {[%emt 0:14:32]} Bxd4+ {[%emt 0:00:07]} 28. Qxd4 {[%emt 0:00:04]} Rxf8 {[%emt 0:00:05]} 29. Nxc8 {[%emt 0:00:11]} Rxc8 {[%emt 0:00:05]} 30. Rd1 {[%emt 0:03:01]} Re8 {[%emt 0:00:49]} 31. Qxd6 {[%emt 0:03:31]} Qxd6 {[%emt 0:00:07]} 32. Rxd6 {[%emt 0:00:04]} Rxe4 {[%emt 0:00:04]} 33. Rd7+ {[%emt 0:00:03]} Kh6 {[%emt 0:00:06]} 34. Rxb7 {[%emt 0:00:11]} Rxc4 {[%emt 0:00:17]} 35. g3 {[%emt 0:00:05]} g5 {[%emt 0:02:43]} 36. Rb6 {[%emt 0:00:35]} gxh4 {[%emt 0:00:20]} 37. gxh4 {[%emt 0:00:05]} Kg7 {[%emt 0:00:36]} 38. Kf2 {[%emt 0:01:07]} c5 {[%emt 0:00:48]} 39. bxc5 {[%emt 0:00:46]} Rxc5 {[%emt 0:00:22]} 40. Rxa6 {[%emt 0:00:05]} Rc4 {[%emt 0:00:15]} 41. Kg3 {[%emt 0:31:30]} Rc3+ {[%emt 0:12:50]} 42. Kf4 {[%emt 0:00:00]} Rc4+ {[%emt 0:00:13]} 43. Kf5 {[%emt 0:00:00]} Rxh4 {[%emt 0:01:05]} 44. Ra7+ {[%emt 0:00:00]} Kh6 {[%emt 0:02:35]} 45. Ra6+ {[%emt 0:00:00]} Kg7 {[%emt 0:00:19]} 46. Ra7+ {[%emt 0:00:00]} Kh6 {[%emt 0:00:17]} 47. Ra8 {[%emt 0:00:00]} Ra4 {[%emt 0:01:36]} 48. Kf6 {[%emt 0:00:00]} Kh7 {[%emt 0:01:08]} 49. a6 {[%emt 0:00:00]} h4 {[%emt 0:00:38]} 50. Ra7+ {[%emt 0:00:00]} Kh6 {[%emt 0:00:32]} 51. Ra8 {[%emt 0:00:00]} Kh7 {[%emt 0:00:39]} 52. Ra7+ {[%emt 0:00:00]} Kh6 {[%emt 0:00:06]} 53. Ra8 {[%emt 0:00:00]} Kh7 {[%emt 0:00:16]} 1/2-1/2

[Event "Berliner IM-Turnier 2025"]
[Site "Berlin"]
[Date "2025.02.26"]
[Round "4.8"]
[White "Poltorak, Sebastian"]
[Black "Yatskar, Martin"]
[Result "1-0"]
[Annotator "ChessBase"]
[ECO "C47"]
[WhiteElo "2407"]
[BlackElo "2157"]
[PlyCount "129"]
[EventDate "2025.02.23"]
[EventType "tourn"]
[EventCountry "GER"]
[SourceTitle "playchess.com"]
[Source "ChessBase"]
[SourceQuality "1"]
[TimeControl "40/5400+30:1800+30"]

1. e4 {[%emt 0:00:03]} e5 {[%emt 0:00:10]} 2. Nf3 {[%emt 0:00:15]} Nc6 {[%emt 0:00:06]} 3. Nc3 {[%emt 0:00:07]} Nf6 {[%emt 0:00:10]} 4. d4 {[%emt 0:00:04]} exd4 {[%emt 0:00:07]} 5. Nd5 {[%emt 0:00:03]} Bc5 {[%emt 0:00:22]} 6. Bg5 {[%emt 0:00:34]} Be7 {[%emt 0:00:06]} 7. Bf4 {[%emt 0:00:14]} d6 {[%emt 0:00:05]} 8. Nxd4 {[%emt 0:01:46]} O-O {[%emt 0:00:09]} 9. Nxc6 {[%emt 0:02:35]} bxc6 {[%emt 0:00:23]} 10. Nxe7+ {[%emt 0:00:06]} Qxe7 {[%emt 0:00:06]} 11. f3 {[%emt 0:00:11]} Nxe4 {[%emt 0:08:42]} 12. Qe2 {[%emt 0:00:28]} Re8 {[%emt 0:00:05]} 13. O-O-O {[%emt 0:09:48]} Nc5 {[%emt 0:03:45]} 14. Qxe7 {[%emt 0:00:11]} Rxe7 {[%emt 0:00:08]} 15. b4 {[%emt 0:11:49]} Na4 {[%emt 0:01:50]} 16. Bd2 {[%emt 0:00:09]} Be6 {[%emt 0:01:53]} 17. a3 {[%emt 0:02:56]} Nb6 {[%emt 0:04:05]} 18. Re1 {[%emt 0:04:08]} Rae8 {[%emt 0:00:32]} 19. Bd3 {[%emt 0:01:09]} Bc4 {[%emt 0:03:38]} 20. Rxe7 {[%emt 0:01:38]} Rxe7 {[%emt 0:00:08]} 21. Be4 {[%emt 0:02:35]} Bd5 {[%emt 0:00:07]} 22. Bd3 {[%emt 0:00:17]} g6 {[%emt 0:19:24]} 23. Bg5 {[%emt 0:03:45]} Re8 {[%emt 0:00:41]} 24. Kd2 {[%emt 0:03:03]} Bc4 {[%emt 0:20:52]} 25. Rc1 {[%emt 0:01:27]} f5 {[%emt 0:05:34]} 26. Bh6 {[%emt 0:17:09]} Kf7 {[%emt 0:01:44]} 27. g4 {[%emt 0:01:53]} fxg4 {[%emt 0:01:58]} 28. fxg4 {[%emt 0:00:20]} Ke6 {[%emt 0:03:31]} 29. Re1+ {[%emt 0:02:59]} Kd7 {[%emt 0:00:30]} 30. Rf1 {[%emt 0:00:01]} Be6 {[%emt 0:08:52]} 31. Rf4 {[%emt 0:01:28]} Nd5 {[%emt 0:01:03]} 32. Rd4 {[%emt 0:00:27]} Nf6 {[%emt 0:02:29]} 33. h3 {[%emt 0:01:21]} Ng8 {[%emt 0:00:36]} 34. Be3 {[%emt 0:00:13]} Nf6 {[%emt 0:01:48]} 35. c4 {[%emt 0:03:21]} a5 {[%emt 0:01:14]} 36. Rf4 {[%emt 0:08:45]} Ng8 {[%emt 0:00:05]} 37. bxa5 {[%emt 0:02:37]} Ra8 {[%emt 0:00:14]} 38. g5 {[%emt 0:00:08]} Rxa5 {[%emt 0:00:41]} 39. Rh4 {[%emt 0:00:04]} Ne7 {[%emt 0:00:56]} 40. Rxh7 {[%emt 0:00:22]} Kd8 {[%emt 0:07:39]} 41. Bd4 {[%emt 0:33:08]} Nf5 {[%emt 0:31:09]} 42. Bf6+ {[%emt 0:02:39]} Kc8 {[%emt 0:00:14]} 43. Rh8+ {[%emt 0:01:45]} Kb7 {[%emt 0:01:03]} 44. Re8 {[%emt 0:00:42]} Bf7 {[%emt 0:02:00]} 45. Rf8 {[%emt 0:00:59]} Be6 {[%emt 0:00:08]} 46. Bc3 {[%emt 0:08:19]} Rxa3 {[%emt 0:01:56]} 47. Rf6 {[%emt 0:00:12]} Ra2+ {[%emt 0:00:09]} 48. Kc1 {[%emt 0:00:00]} Ng7 {[%emt 0:00:00]} 49. Rxg6 {[%emt 0:00:00]} Bf5 {[%emt 0:00:00]} 50. Bxf5 {[%emt 0:00:00]} Nxf5 {[%emt 0:00:00]} 51. Rf6 {[%emt 0:00:00]} Ne3 {[%emt 0:00:00]} 52. g6 {[%emt 0:00:00]} Rc2+ {[%emt 0:00:00]} 53. Kb1 {[%emt 0:00:00]} Rg2 {[%emt 0:00:00]} 54. h4 {[%emt 0:00:00]} d5 {[%emt 0:00:00]} 55. h5 {[%emt 0:00:00]} Rg1+ {[%emt 0:00:00]} 56. Kb2 {[%emt 0:00:00]} Nxc4+ {[%emt 0:00:00]} 57. Kc2 {[%emt 0:00:00]} c5 {[%emt 0:00:00]} 58. h6 {[%emt 0:00:00]} d4 {[%emt 0:00:00]} 59. h7 {[%emt 0:02:06]} Ne3+ {[%emt 0:00:00]} 60. Kd3 {[%emt 0:00:48]} dxc3 {[%emt 0:00:00]} 61. h8=Q {[%emt 0:02:49]} c2 {[%emt 0:00:00]} 62. Qe8 {[%emt 0:00:27]} c4+ {[%emt 0:06:33]} 63. Ke4 {[%emt 0:00:26]} Rg4+ {[%emt 0:01:07]} 64. Kf3 {[%emt 0:00:04]} Rf4+ {[%emt 0:00:31]} 65. Kxf4 {[%emt 0:00:23]} 1-0